fUST/lending_fUST_20250806
["ID","MTS","AMOUNT","RATE_DAILY","PERIOD"]
[377430317,1754409621286,244.140696,0.00013699,2]
[377430318,1754409621505,244.140696,0.00020187,2]
[377430320,1754409759998,1209.60283607,0.00025748,2]
[377430321,1754409760027,8658.98666963,0.00025748,2]
[377430322,1754409777248,11341.01333037,0.00025734,2]
[377430323,1754409777277,13558.98666963,0.00025734,2]
[377430327,1754410090166,1411.95348611,0.00024477,2]
[377430333,1754410114719,1000.0,0.00025734,2]
[377430336,1754410130014,164.05477686,0.00026576,2]
[377430337,1754410130886,150.0,0.00026577,2]
[377430338,1754410135782,184.5697012,0.00025715,2]
[377430339,1754410150350,2301.4047503,0.00025205,2]
[377430340,1754410150459,1229.0306159,0.00025205,2]
[377430341,1754410150498,1072.37413415,0.00025205,2]
[377430342,1754410150584,2301.40475005,0.00025205,2]
[377430343,1754410150702,2301.40475005,0.00025205,2]
[377430344,1754410150806,2301.40475005,0.00025205,2]
[377430345,1754410150914,2301.40475005,0.00025205,2]
[377430346,1754410151016,2301.40475005,0.00025205,2]
[377430347,1754410151132,2301.40475005,0.00025205,2]
[377430348,1754410151251,2301.40475005,0.00025455,3]
[377430363,1754410232945,-449.42836456,0.00026602,2]
[377430368,1754410233221,-0.98163544,0.00026602,2]
[377430369,1754410233231,-164.05477685,0.00026636,2]
[377430370,1754410233241,-164.05477685,0.00026637,2]
[377430371,1754410233253,-244.140696,0.00026676,2]
[377430372,1754410233263,-1075.25145399,0.00026727,2]
[377430374,1754410233273,-516.68775025,0.00026736,2]
[377430376,1754410233283,-462.20971492,0.00026736,2]
[377430378,1754410233293,-405.39473352,0.00026736,2]
[377430380,1754410233303,-500.0,0.00026736,2]
[377430382,1754410233312,-500.0,0.00026736,2]
[377430384,1754410233322,-500.0,0.00026736,2]
[377430386,1754410233331,-500.0,0.00026736,2]
[377430388,1754410233341,-500.0,0.00026736,2]
[377430390,1754410233350,-500.0,0.00026736,2]
[377430392,1754410233359,-500.0,0.00026736,2]
[377430394,1754410233369,-500.0,0.00026736,2]
[377430396,1754410233379,-500.0,0.00026736,2]
[377430398,1754410233390,-500.0,0.00026736,2]
[377430400,1754410233399,-374.81076015,0.00026736,2]
[377430402,1754410233409,-500.0,0.00026736,2]
[377430404,1754410233419,-433.43779354,0.00026736,2]
[377430406,1754410233429,-300.0,0.00026736,2]
[377430408,1754410233438,-1200.0,0.00026736,2]
[377430410,1754410233448,-300.0,0.00026736,2]
[377430412,1754410233458,-300.0,0.00026736,2]
[377430414,1754410233467,-300.0,0.00026736,2]
[377430416,1754410233477,-160.0,0.00026736,2]
[377430418,1754410233487,-16255.1824977,0.00026737,2]
[377430613,1754410238846,-500.0,0.00026736,2]
[377430614,1754410238857,-500.0,0.00026736,2]
[377430615,1754410238868,-500.0,0.00026736,2]
[377430616,1754410238878,-500.0,0.00026736,2]
[377430617,1754410238888,-500.0,0.00026736,2]
[377430618,1754410238897,-500.0,0.00026736,2]
[377430619,1754410238907,-500.0,0.00026736,2]
[377430620,1754410238916,-500.0,0.00026736,2]
[377430621,1754410238926,-500.0,0.00026736,2]
[377430622,1754410238936,-500.0,0.00026736,2]
[377430623,1754410238945,-417.55714457,0.00026736,2]
[377430624,1754410238955,-17672.48663855,0.00026737,2]
[377430625,1754410238992,-15821.560711,0.00026737,2]
[377430627,1754410239002,-11307.03240694,0.00026737,2]
[377430629,1754410239012,-500.0,0.00026743,2]
[377430630,1754410239022,-600.46854189,0.00026743,2]
[377430631,1754410239032,-1075.25145397,0.00026745,2]
[377430632,1754410239041,-514.0,0.00026748,2]
[377430633,1754410239051,-158.85,0.00026749,2]
[377430634,1754410239061,-179.40814277,0.00026753,14]
[377430635,1754410239070,-188.708,0.00026753,14]
[377430636,1754410239080,-2301.40475005,0.00026762,6]
[377430637,1754410239090,-1075.25145397,0.00026764,2]
[377430638,1754410239100,-1075.25145397,0.00026782,2]
[377430639,1754410239114,-1075.25145397,0.000268,2]
[377430640,1754410239129,-571.26,0.00026808,10]
[377430641,1754410239138,-476.05,0.00026808,10]
[377430642,1754410239149,-871.06,0.00026817,3]
[377430643,1754410239158,-98291.960439,0.00026817,2]
[377430644,1754410239168,-1283.7,0.00026827,3]
[377430645,1754410239177,-641.85,0.00026827,3]
[377430646,1754410239189,-320.93,0.00026827,3]
[377430647,1754410239200,-160.46,0.00026827,3]
[377430648,1754410239210,-481.43,0.00026827,3]
[377430649,1754410239219,-98291.960439,0.00026827,2]
[377430650,1754410239229,-147437.940659,0.00026837,2]
[377430651,1754410239239,-295.0,0.00026839,2]
[377430652,1754410239249,-414379.86660051,0.00026847,2]
[377430653,1754410239260,-500.0,0.00026873,2]
[377430654,1754410239270,-500.0,0.00026873,2]
[377430655,1754410239280,-500.0,0.00026873,2]
[377430656,1754410239289,-387.81702679,0.00026873,2]
[377430657,1754410239298,-634.83327394,0.00026873,2]
[377430658,1754410239308,-229.95386317,0.00026873,2]
[377430659,1754410239318,-500.0,0.00026873,2]
[377430660,1754410239328,-608.43236562,0.00026873,2]
[377430661,1754410239337,-500.0,0.00026873,2]
[377430662,1754410239347,-337.30724381,0.00026873,2]
[377430663,1754410239356,-500.0,0.00026873,2]
[377430664,1754410239366,-501.01943038,0.00026873,2]
[377430665,1754410239377,-500.0,0.00026873,2]
[377430666,1754410239387,-500.0,0.00026873,2]
[377430667,1754410239399,-514.34265152,0.00026873,2]
[377430668,1754410239411,-503.14242823,0.00026873,2]
[377430669,1754410239422,-161.48486472,0.00026873,2]
[377430670,1754410239432,-500.0,0.00026873,2]
[377430671,1754410239442,-509.34255468,0.00026873,2]
[377430672,1754410239453,-500.0,0.00026873,2]
[377430673,1754410239463,-500.0,0.00026873,2]
[377430674,1754410239472,-500.0,0.00026873,2]
[377430675,1754410239483,-554.39419704,0.00026873,2]
[377430676,1754410239492,-151.09646588,0.00026873,2]
[377430677,1754410239502,-501.38271662,0.00026873,2]
[377430678,1754410239512,-500.0,0.00026873,2]
[377430679,1754410239522,-500.0,0.00026873,2]
[377430680,1754410239532,-500.0,0.00026873,2]
[377430681,1754410239543,-500.0,0.00026873,2]
[377430682,1754410239552,-501.1736456,0.00026873,2]
[377430683,1754410239562,-500.0,0.00026873,2]
[377430684,1754410239571,-500.0,0.00026873,2]
[377430685,1754410239581,-500.0,0.00026873,2]
[377430686,1754410239590,-500.0,0.00026873,2]
[377430687,1754410239600,-603.04606103,0.00026873,2]
[377430688,1754410239609,-300.0,0.00026879,2]
[377430689,1754410239619,-370000.0,0.0002688,2]
[377430690,1754410239628,-151.0,0.000269,10]
[377430691,1754410239638,-151.0,0.000269,12]
[377430692,1754410239648,-151.0,0.000269,18]
[377430693,1754410239658,-1910.89934944,0.00026953,2]
[377430694,1754410239667,-461.15695721,0.00027,3]
[377430695,1754410239678,-343.0,0.00027153,2]
[377430696,1754410239689,-154.26562305,0.00027373,2]
[377430697,1754410239701,-500.0,0.00027373,2]
[377430698,1754410239711,-500.0,0.00027373,2]
[377430699,1754410239720,-500.0,0.00027373,2]
[377430700,1754410239731,-500.0,0.00027373,2]
[377430701,1754410239741,-500.0,0.00027373,2]
[377430702,1754410239751,-168.18530873,0.00027373,2]
[377430704,1754410239762,-500.0,0.00027373,2]
[377430705,1754410239772,-500.0,0.00027373,2]
[377430706,1754410239783,-500.0,0.00027373,2]
[377430707,1754410239794,-500.0,0.00027373,2]
[377430708,1754410239803,-275.76878478,0.00027373,2]
[377430709,1754410239813,-500.0,0.00027373,2]
[377430710,1754410239823,-500.0,0.00027373,2]
[377430711,1754410239833,-500.0,0.00027373,2]
[377430712,1754410239843,-501.05777975,0.00027373,2]
[377430713,1754410239852,-500.0,0.00027373,2]
[377430714,1754410239862,-500.0,0.00027373,2]
[377430715,1754410239873,-5371.6,0.00027396,2]
[377430716,1754410239882,-5371.6,0.00027396,2]
[377430717,1754410239892,-5371.6,0.00027396,2]
[377430718,1754410239902,-5371.6,0.00027396,2]
[377430719,1754410239912,-5371.6,0.00027396,2]
[377430720,1754410239922,-460.0,0.00027397,2]
[377430721,1754410239931,-460.0,0.00027397,2]
[377430722,1754410239941,-532.81,0.00027397,2]
[377430723,1754410239951,-460.0,0.00027397,2]
[377430724,1754410239961,-475.3312275,0.00027397,2]
[377430725,1754410239971,-460.0,0.00027397,2]
[377430726,1754410239981,-460.0,0.00027397,2]
[377430727,1754410239991,-460.0,0.00027397,2]
[377430728,1754410240000,-461.53661659,0.00027397,2]
[377430729,1754410240011,-871.43,0.00027397,2]
[377430730,1754410240021,-1600.0,0.00027397,7]
[377430731,1754410240031,-1387.58,0.00027397,2]
[377430732,1754410240041,-460.0,0.00027397,2]
[377430733,1754410240051,-215.79933557,0.00027397,2]
[377430734,1754410240061,-460.0,0.00027397,2]
[377430735,1754410240071,-504.62,0.00027397,2]
[377430736,1754410240080,-942.7,0.00027397,2]
[377430737,1754410240090,-460.0,0.00027397,2]
[377430738,1754410240100,-460.0,0.00027397,2]
[377430739,1754410240110,-460.0,0.00027397,2]
[377430740,1754410240120,-460.0,0.00027397,2]
[377430741,1754410240130,-500.0,0.00027397,2]
[377430742,1754410240140,-462.59557922,0.00027397,2]
[377430743,1754410240150,-460.0,0.00027397,2]
[377430744,1754410240160,-460.0,0.00027397,2]
[377430745,1754410240170,-519.76571343,0.00027397,2]
[377430746,1754410240181,-317.07535462,0.00027397,2]
[377430747,1754410240192,-460.0,0.00027397,2]
[377430748,1754410240204,-460.0,0.00027397,2]
[377430749,1754410240214,-537.28,0.00027397,2]
[377430750,1754410240225,-460.0,0.00027397,2]
[377430751,1754410240236,-211.48398829,0.00027397,2]
[377430752,1754410240246,-460.0,0.00027397,2]
[377430753,1754410240255,-460.0,0.00027397,2]
[377430754,1754410240266,-460.0,0.00027397,2]
[377430755,1754410240276,-460.0,0.00027397,2]
[377430756,1754410240286,-460.0,0.00027397,2]
[377430757,1754410240295,-500.0,0.00027397,2]
[377430759,1754410240306,-500.0,0.00027397,2]
[377430761,1754410240315,-500.0,0.00027397,2]
[377430762,1754410240325,-500.0,0.00027397,2]
[377430764,1754410240335,-500.0,0.00027397,2]
[377430766,1754410240345,-507.61193343,0.00027397,2]
[377430767,1754410240354,-460.0,0.00027397,2]
[377430768,1754410240365,-460.0,0.00027397,2]
[377430769,1754410240377,-550.70363282,0.00027397,2]
[377430770,1754410240387,-460.0,0.00027397,2]
[377430771,1754410240399,-460.0,0.00027397,2]
[377430772,1754410240411,-460.0,0.00027397,2]
[377430773,1754410240421,-460.0,0.00027397,2]
[377430774,1754410240433,-986.94,0.00027397,2]
[377430775,1754410240443,-460.0,0.00027397,2]
[377430777,1754410240454,-465.17304523,0.00027397,2]
[377430778,1754410240463,-460.0,0.00027397,2]
[377430780,1754410240475,-460.0,0.00027397,2]
[377430781,1754410240485,-702.16,0.00027397,2]
[377430782,1754410240496,-460.0,0.00027397,2]
[377430783,1754410240506,-460.0,0.00027397,2]
[377430784,1754410240519,-521.76301085,0.00027397,2]
[377430785,1754410240529,-460.0,0.00027397,2]
[377430786,1754410240539,-460.0,0.00027397,2]
[377430787,1754410240548,-460.0,0.00027397,2]
[377430788,1754410240558,-460.0,0.00027397,2]
[377430789,1754410240568,-473.2,0.00027397,2]
[377430790,1754410240579,-606.32,0.00027397,2]
[377430791,1754410240589,-460.0,0.00027397,2]
[377430792,1754410240600,-2494.53,0.00027397,2]
[377430793,1754410240610,-2390.59,0.00027397,2]
[377430794,1754410240619,-460.0,0.00027397,2]
[377430795,1754410240629,-460.0,0.00027397,2]
[377430796,1754410240639,-460.0,0.00027397,2]
[377430797,1754410240649,-74395.39,0.00027397,2]
[377430798,1754410240659,-1190.71,0.00027397,2]
[377430799,1754410240669,-314.43341498,0.00027397,5]
[377430800,1754410240679,-573.07,0.00027397,2]
[377430802,1754410240691,-460.0,0.00027397,2]
[377430804,1754410240705,-460.0,0.00027397,2]
[377430805,1754410240715,-500.0,0.00027397,2]
[377430806,1754410240855,-460.0,0.00027397,2]
[377430807,1754410240873,-460.0,0.00027397,2]
[377430808,1754410240884,-515.93,0.00027397,2]
[377430809,1754410240894,-460.0,0.00027397,2]
[377430810,1754410240904,-460.0,0.00027397,2]
[377430811,1754410240914,-856.28,0.00027397,2]
[377430812,1754410240924,-540.79,0.00027397,2]
[377430813,1754410240935,-460.0,0.00027397,2]
[377430814,1754410240944,-460.0,0.00027397,2]
[377430815,1754410240955,-460.0,0.00027397,2]
[377430816,1754410240965,-472.45,0.00027397,2]
[377430817,1754410240975,-460.0,0.00027397,2]
[377430818,1754410240986,-1662.46,0.00027397,2]
[377430819,1754410240995,-460.0,0.00027397,2]
[377430820,1754410241005,-864.66,0.00027397,2]
[377430821,1754410241018,-679.13,0.00027397,2]
[377430822,1754410241029,-460.0,0.00027397,2]
[377430824,1754410241039,-563.81,0.00027397,2]
[377430825,1754410241048,-3184.23,0.00027397,2]
[377430827,1754410241058,-1361.89,0.00027397,2]
[377430829,1754410241068,-460.0,0.00027397,2]
[377430831,1754410241077,-460.0,0.00027397,2]
[377430833,1754410241087,-460.0,0.00027397,2]
[377430834,1754410241097,-460.0,0.00027397,2]
[377430835,1754410241107,-460.0,0.00027397,2]
[377430836,1754410241116,-460.0,0.00027397,2]
[377430838,1754410241126,-2500.63,0.00027397,2]
[377430840,1754410241136,-460.0,0.00027397,2]
[377430842,1754410241145,-460.0,0.00027397,2]
[377430844,1754410241154,-460.0,0.00027397,2]
[377430846,1754410241164,-460.0,0.00027397,2]
[377430848,1754410241174,-460.0,0.00027397,2]
[377430850,1754410241183,-460.0,0.00027397,2]
[377430852,1754410241193,-1183.79,0.00027397,2]
[377430854,1754410241203,-848.57,0.00027397,2]
[377430856,1754410241213,-460.0,0.00027397,2]
[377430858,1754410241223,-460.0,0.00027397,2]
[377430859,1754410241232,-460.0,0.00027397,2]
[377430860,1754410241242,-460.0,0.00027397,2]
[377430862,1754410241252,-465.2,0.00027397,2]
[377430864,1754410241265,-460.0,0.00027397,2]
[377430866,1754410241274,-460.0,0.00027397,2]
[377430868,1754410241284,-460.0,0.00027397,2]
[377430870,1754410241295,-460.0,0.00027397,2]
[377430871,1754410241304,-2381.52,0.00027397,2]
[377430872,1754410241314,-460.0,0.00027397,2]
[377430873,1754410241323,-460.0,0.00027397,2]
[377430874,1754410241332,-460.0,0.00027397,2]
[377430876,1754410241342,-477.4,0.00027397,2]
[377430878,1754410241352,-500.0,0.00027397,2]
[377430881,1754410241362,-500.0,0.00027397,2]
[377430882,1754410241372,-500.0,0.00027397,2]
[377430884,1754410241382,-527.21482123,0.00027397,2]
[377430887,1754410241392,-704.17,0.00027397,2]
[377430889,1754410241402,-460.0,0.00027397,2]
[377430891,1754410241412,-832.73,0.00027397,2]
[377430893,1754410241422,-460.0,0.00027397,2]
[377430894,1754410241432,-460.0,0.00027397,2]
[377430895,1754410241442,-713.09,0.00027397,2]
[377430896,1754410241452,-520.23243651,0.00027421,5]
[377430897,1754410241461,-1001.60499278,0.00027421,5]
[377430898,1754410241471,-1000.0,0.00027421,5]
[377430899,1754410241481,-1000.0,0.00027421,5]
[377430900,1754410241491,-1000.0,0.00027421,5]
[377430901,1754410241501,-1000.0,0.00027421,5]
[377430902,1754410241511,-1000.0,0.00027421,5]
[377430903,1754410241521,-1000.0,0.00027421,5]
[377430904,1754410241531,-500.86639372,0.00027421,2]
[377430905,1754410241541,-1000.0,0.00027421,5]
[377430906,1754410241551,-1031.81224926,0.00027421,5]
[377430907,1754410241560,-505.44698061,0.00027421,5]
[377430908,1754410241570,-1000.0,0.00027421,5]
[377430909,1754410241581,-862.4571183,0.00027421,5]
[377430910,1754410241590,-1000.0,0.00027421,5]
[377430911,1754410241601,-599.83262584,0.00027421,5]
[377430912,1754410241611,-1000.0,0.00027421,5]
[377430913,1754410241621,-1000.0,0.00027421,5]
[377430914,1754410241632,-347.10100391,0.00027424,2]
[377430915,1754410241643,-842.25606042,0.00027432,2]
[377430916,1754410241654,-160.0,0.00027433,2]
[377430917,1754410241665,-12655.02535889,0.00027437,2]
[377430918,1754410241676,-216.4206905,0.00027438,2]
[377430919,1754410241686,-160.0,0.00027438,2]
[377430920,1754410241699,-160.0,0.00027438,2]
[377430921,1754410241712,-160.0,0.00027438,2]
[377430922,1754410241722,-231.72586818,0.00027438,2]
[377430923,1754410241735,-160.0,0.00027438,2]
[377430924,1754410241745,-215.21874788,0.00027438,2]
[377430925,1754410241756,-11307.03240692,0.00027565,2]
[377430926,1754410241767,-8901.98519544,0.00027571,2]
[377430927,1754410241781,-5371.6,0.00027624,2]
[377430928,1754410241792,-5371.6,0.00027639,2]
[377430929,1754410241802,-5371.6,0.0002767,2]
[377430930,1754410241812,-5371.6,0.0002767,2]
[377430931,1754410241822,-5371.6,0.0002767,2]
[377430932,1754410241832,-5371.6,0.0002767,2]
[377430933,1754410241843,-460.0,0.00027671,2]
[377430934,1754410241852,-460.0,0.00027671,2]
[377430935,1754410241862,-532.81,0.00027671,2]
[377430936,1754410241872,-460.0,0.00027671,2]
[377430937,1754410241882,-460.0,0.00027671,2]
[377430938,1754410241891,-460.0,0.00027671,2]
[377430939,1754410241901,-460.0,0.00027671,2]
[377430940,1754410241911,-871.43,0.00027671,2]
[377430941,1754410241920,-1387.58,0.00027671,2]
[377430942,1754410241930,-460.0,0.00027671,2]
[377430943,1754410241940,-460.0,0.00027671,2]
[377430944,1754410241950,-504.62,0.00027671,2]
[377430945,1754410241960,-942.7,0.00027671,2]
[377430946,1754410241969,-460.0,0.00027671,2]
[377430947,1754410241979,-460.0,0.00027671,2]
[377430948,1754410241989,-460.0,0.00027671,2]
[377430949,1754410241998,-508.42,0.00027671,2]
[377430950,1754410242008,-500.0,0.00027671,2]
[377430951,1754410242019,-460.0,0.00027671,2]
[377430952,1754410242028,-466.38677929,0.00027671,2]
[377430953,1754410242038,-460.0,0.00027671,2]
[377430954,1754410242048,-290.68495516,0.00027671,2]
[377430955,1754410242057,-537.28,0.00027671,2]
[377430956,1754410242067,-460.0,0.00027671,2]
[377430957,1754410242077,-568.27527087,0.00027671,2]
[377430958,1754410242087,-473.76,0.00027671,2]
[377430959,1754410242097,-460.0,0.00027671,2]
[377430960,1754410242106,-460.0,0.00027671,2]
[377430961,1754410242116,-460.0,0.00027671,2]
[377430962,1754410242125,-185.56505735,0.00027671,2]
[377430963,1754410242135,-986.94,0.00027671,2]
[377430964,1754410242144,-460.0,0.00027671,2]
[377430965,1754410242154,-151.0,0.00027671,7]
[377430966,1754410242164,-151.0,0.00027671,7]
[377430967,1754410242173,-226.029935,0.00027671,7]
[377430968,1754410242183,-460.0,0.00027671,2]
[377430969,1754410242193,-702.16,0.00027671,2]
[377430970,1754410242203,-460.0,0.00027671,2]
[377430971,1754410242213,-460.0,0.00027671,2]
[377430972,1754410242223,-473.2,0.00027671,2]
[377430973,1754410242233,-460.0,0.00027671,2]
[377430974,1754410242244,-606.32,0.00027671,2]
[377430975,1754410242254,-460.0,0.00027671,2]
[377430976,1754410242266,-2494.53,0.00027671,2]
[377430977,1754410242277,-2390.59,0.00027671,2]
[377430978,1754410242287,-460.0,0.00027671,2]
[377430979,1754410242297,-460.0,0.00027671,2]
[377430980,1754410242307,-460.0,0.00027671,2]
[377430981,1754410242318,-74395.39,0.00027671,2]
[377430982,1754410242329,-151.0,0.00027671,7]
[377430983,1754410242339,-1190.71,0.00027671,2]
[377430984,1754410242348,-573.07,0.00027671,2]
[377430985,1754410242358,-500.0,0.00027671,2]
[377430986,1754410242370,-460.0,0.00027671,2]
[377430987,1754410242381,-472.66323559,0.00027671,2]
[377430988,1754410242392,-515.93,0.00027671,2]
[377430989,1754410242403,-151.0,0.00027671,7]
[377430990,1754410242414,-460.0,0.00027671,2]
[377430991,1754410242425,-467.13404748,0.00027671,2]
[377430992,1754410242437,-856.28,0.00027671,2]
[377430993,1754410242448,-540.79,0.00027671,2]
[377430994,1754410242458,-460.0,0.00027671,2]
[377430995,1754410242470,-460.0,0.00027671,2]
[377430996,1754410242480,-472.45,0.00027671,2]
[377430997,1754410242491,-1662.46,0.00027671,2]
[377430998,1754410242501,-460.0,0.00027671,2]
[377430999,1754410242513,-864.66,0.00027671,2]
[377431000,1754410242523,-679.13,0.00027671,2]
[377431001,1754410242532,-563.81,0.00027671,2]
[377431002,1754410242542,-460.0,0.00027671,2]
[377431003,1754410242551,-3184.23,0.00027671,2]
[377431004,1754410242561,-1361.89,0.00027671,2]
[377431005,1754410242571,-460.0,0.00027671,2]
[377431006,1754410242580,-293.26310491,0.00027671,2]
[377431007,1754410242590,-151.0,0.00027671,7]
[377431008,1754410242599,-460.0,0.00027671,2]
[377431009,1754410242609,-155.200538,0.00027671,7]
[377431010,1754410242618,-460.0,0.00027671,2]
[377431011,1754410242628,-151.0,0.00027671,7]
[377431012,1754410242638,-460.0,0.00027671,2]
[377431013,1754410242647,-2500.63,0.00027671,2]
[377431014,1754410242657,-460.0,0.00027671,2]
[377431015,1754410242667,-460.0,0.00027671,2]
[377431016,1754410242677,-460.0,0.00027671,2]
[377431017,1754410242687,-460.0,0.00027671,2]
[377431018,1754410242698,-1183.79,0.00027671,2]
[377431019,1754410242712,-151.0,0.00027671,7]
[377431020,1754410242722,-848.57,0.00027671,2]
[377431021,1754410242732,-460.0,0.00027671,2]
[377431022,1754410242743,-460.0,0.00027671,2]
[377431023,1754410242752,-151.0,0.00027671,7]
[377431024,1754410242762,-460.0,0.00027671,2]
[377431025,1754410242771,-465.2,0.00027671,2]
[377431026,1754410242781,-151.0,0.00027671,7]
[377431027,1754410242792,-460.0,0.00027671,2]
[377431028,1754410242803,-151.0,0.00027671,7]
[377431029,1754410242812,-460.0,0.00027671,2]
[377431030,1754410242823,-151.0,0.00027671,7]
[377431031,1754410242832,-460.0,0.00027671,2]
[377431032,1754410242842,-2381.52,0.00027671,2]
[377431033,1754410242852,-460.0,0.00027671,2]
[377431034,1754410242862,-460.0,0.00027671,2]
[377431035,1754410242872,-460.0,0.00027671,2]
[377431036,1754410242882,-477.4,0.00027671,2]
[377431037,1754410242892,-151.0,0.00027671,7]
[377431038,1754410242901,-704.17,0.00027671,2]
[377431039,1754410242911,-460.0,0.00027671,2]
[377431040,1754410242920,-151.0,0.00027671,7]
[377431041,1754410242930,-832.73,0.00027671,2]
[377431042,1754410242939,-713.09,0.00027671,2]
[377431043,1754410242949,-601.2282729,0.00027673,5]
[377431044,1754410242959,-500.0,0.00027673,5]
[377431045,1754410242968,-500.0,0.00027673,5]
[377431046,1754410242978,-502.07498158,0.00027673,5]
[377431047,1754410242987,-500.0,0.00027673,2]
[377431048,1754410242997,-250.0,0.00027673,5]
[377431049,1754410243006,-500.0,0.00027673,5]
[377431050,1754410243017,-5371.6,0.00027673,2]
[377431051,1754410243028,-5371.6,0.00027673,2]
[377431052,1754410243038,-5371.6,0.00027673,2]
[377431053,1754410243048,-5371.6,0.00027673,2]
[377431054,1754410243058,-5371.6,0.00027673,2]
[377431055,1754410243067,-5371.6,0.00027673,2]
[377431056,1754410243076,-5371.6,0.00027673,2]
[377431057,1754410243086,-5371.6,0.00027673,2]
[377431058,1754410243095,-5371.6,0.00027673,2]
[377431059,1754410243105,-5371.6,0.00027673,2]
[377431060,1754410243115,-5371.6,0.00027673,2]
[377431061,1754410243125,-5371.6,0.00027673,2]
[377431062,1754410243135,-5371.6373394,0.00027673,2]
[377431063,1754410243145,-460.0,0.00027706,2]
[377431064,1754410243155,-460.0,0.00027706,2]
[377431065,1754410243164,-152.88,0.00027744,15]
[377431066,1754410243174,-153.34,0.00027744,15]
[377431067,1754410243184,-292.5,0.00027745,15]
[377431068,1754410243193,-153.98,0.00027745,15]
[377431069,1754410243203,-153.36,0.00027766,15]
[377431070,1754410243213,-153.34,0.00027844,15]
[377431071,1754410243223,-153.98,0.00027845,15]
[377431072,1754410243234,-153.36,0.00027866,15]
[377431073,1754410243245,-500.0,0.00027921,5]
[377431076,1754410243255,-1004.43512792,0.00027921,5]
[377431077,1754410243265,-500.0,0.00027921,5]
[377431078,1754410243275,-500.0,0.00027921,5]
[377431079,1754410243285,-500.0,0.00027921,5]
[377431080,1754410243295,-502.48038745,0.00027921,5]
[377431081,1754410243304,-1000.0,0.00027921,5]
[377431082,1754410243314,-1000.0,0.00027921,5]
[377431083,1754410243323,-1000.0,0.00027921,5]
[377431084,1754410243333,-507.46658181,0.00027922,2]
[377431085,1754410243354,-153.34,0.00027944,15]
[377431086,1754410243364,-200.0,0.00027944,10]
[377431087,1754410243374,-460.0,0.00027945,2]
[377431089,1754410243385,-302.58,0.00027945,2]
[377431090,1754410243394,-532.81,0.00027945,2]
[377431092,1754410243477,-460.0,0.00027945,2]
[377431093,1754410243488,-460.0,0.00027945,2]
[377431094,1754410243498,-460.0,0.00027945,2]
[377431095,1754410243508,-460.0,0.00027945,2]
[377431096,1754410243519,-871.43,0.00027945,2]
[377431097,1754410243529,-1387.58,0.00027945,2]
[377431098,1754410243539,-460.0,0.00027945,2]
[377431099,1754410243549,-460.0,0.00027945,2]
[377431100,1754410243559,-504.62,0.00027945,2]
[377431101,1754410243570,-942.7,0.00027945,2]
[377431102,1754410243579,-460.0,0.00027945,2]
[377431103,1754410243589,-460.0,0.00027945,2]
[377431104,1754410243600,-460.0,0.00027945,2]
[377431105,1754410243610,-500.0,0.00027945,2]
[377431106,1754410243619,-460.0,0.00027945,2]
[377431107,1754410243630,-460.0,0.00027945,2]
[377431108,1754410243639,-537.28,0.00027945,2]